bitfinex-derivatives/quotes_SOLF0:USTF0_20250523
["timestamp","ask_amount","ask_price","bid_price","bid_amount"]
[1748027158871,0.03864444,179.23,179.22,111.6182]
[1748027160278,0.03864444,179.23,179.19,161.03545176]
[1748027160777,0.03864444,179.23,179.19,0.03545176]
[1748027160979,5.5783,179.22,179.19,0.03545176]
[1748027161486,5.61664444,179.23,179.19,5.61455176]
[1748027162279,0.03864444,179.23,179.19,0.03545176]
[1748027163078,0.03864444,179.23,179.2,5.5786]
[1748027163283,0.03864444,179.23,179.19,0.03545176]
[1748027164176,0.03864444,179.23,179.19,106.07545176]
[1748027164374,0.03864444,179.23,179.22,5.5782]
[1748027164680,0.03864444,179.23,179.22,166.5782]
[1748027164878,6.80805253,179.29,179.22,161.0]
[1748027165069,6.80805253,179.29,179.23,5.93858406]
[1748027165271,6.80805253,179.29,179.23,133.59998406]
[1748027165478,10.01852709,179.31,179.26,5.93858406]
[1748027165788,13.38885352,179.36,179.29,5.93858406]
[1748027165976,13.38885352,179.36,179.3,125.64]
[1748027166175,13.38885352,179.36,179.35,5.5742]
[1748027166675,131.2127,179.4,179.35,5.5742]
[1748027166870,0.04046565,179.39,179.36,0.03586979]
[1748027167078,5.5734,179.38,179.36,0.03586979]
[1748027169071,0.04046565,179.39,179.36,0.03586979]
[1748027170576,0.04046565,179.39,179.36,5.60946979]
[1748027171078,0.04046565,179.39,179.36,0.03586979]
[1748027171278,0.04046565,179.39,179.37,5.5733]
[1748027171476,0.04046565,179.39,179.36,0.03586979]
[1748027172080,0.04046565,179.39,179.38,5.5732]
[1748027172771,0.04046565,179.39,179.37,111.5534]
[1748027172971,0.04046565,179.39,179.36,0.03586979]
[1748027175180,0.04046565,179.39,179.37,5.5733]
[1748027176674,0.04046565,179.39,179.36,0.03586979]
[1748027177678,0.04046565,179.39,179.37,5.5732]
[1748027177987,0.04046565,179.39,179.36,0.03586979]
[1748027178282,0.04046565,179.39,179.36,5.60966979]
[1748027178485,0.04046565,179.39,179.36,0.03586979]
[1748027178685,0.04046565,179.39,179.36,5.60966979]
[1748027178878,0.04046565,179.39,179.36,0.03586979]
[1748027179580,0.04046565,179.39,179.38,5.5732]
[1748027179976,0.04046565,179.39,179.36,0.03586979]
[1748027180288,0.04046565,179.39,179.37,5.5733]
[1748027180685,0.04046565,179.39,179.36,0.03586979]
[1748027183190,0.04046565,179.39,179.38,5.5732]
[1748027186690,2.0204,179.48,179.36,0.03586979]
[1748027186885,2.0204,179.48,179.36,1.9719]
[1748027187085,5.5707,179.47,179.43,5.5716]
[1748027187290,2.0204,179.48,179.36,1.9719]
[1748027187493,0.04082108,179.44,179.4,0.03591533]
[1748027187693,0.04082108,179.44,179.41,105.94]
[1748027188187,0.04082108,179.44,179.43,5.5717]
[1748027188897,13.38885352,179.64,179.43,15.02331223]
[1748027189192,13.38885352,179.64,179.59,9.44331223]
[1748027189193,1.33905688,179.64,179.59,9.44331223]
[1748027189383,16.77,179.85,179.6,481.66]
[1748027189688,5.777,179.86,179.68,5.88557141]
[1748027189891,80.3777751,179.82,179.73,5.88557141]
[1748027190096,1.33905688,179.8,179.74,145.06]
[1748027190389,80.3777751,179.82,179.79,5.88557141]
[1748027190790,1.33905688,179.8,179.73,105.92]
[1748027190988,1.33905688,179.76,179.73,105.92]
[1748027191191,1.33905688,179.77,179.73,105.92]
[1748027191387,80.3777751,179.82,179.73,111.80557141]
[1748027191595,80.3777751,179.82,179.74,6.17350907]
[1748027191787,0.03737453,179.79,179.76,0.0410098]
[1748027192186,0.03737453,179.79,179.78,5.5608]
[1748027193285,0.03737453,179.79,179.78,11.73430907]
[1748027193891,0.03737453,179.79,179.76,5.24257077]
[1748027193892,0.03737453,179.79,179.57,481.32]
[1748027194096,0.03737453,179.79,179.69,16.36228627]
[1748027194297,0.03737453,179.79,179.76,5.5612]
[1748027194492,0.03737453,179.79,179.7,6.07236048]
[1748027195102,0.03737453,179.79,179.73,0.03534534]
[1748027196196,0.03737453,179.79,179.76,5.5614]
[1748027196996,0.03737453,179.79,179.75,5.5617]
[1748027197190,0.03737453,179.79,179.73,0.03534534]
[1748027197395,0.03737453,179.79,179.76,5.5614]
[1748027197700,0.03737453,179.79,179.73,0.03534534]
[1748027198093,0.03737453,179.79,179.75,5.5615]
[1748027198293,0.03737453,179.79,179.73,0.03534534]
[1748027199802,5.59787453,179.79,179.73,5.59764534]
[1748027199992,0.03737453,179.79,179.73,0.03534534]
[1748027200502,5.5608,179.78,179.73,0.03534534]
[1748027200707,0.03737453,179.79,179.73,0.03534534]
[1748027202302,5.59817453,179.79,179.74,5.5621]
[1748027202500,0.03737453,179.79,179.73,144.85534534]
[1748027203002,0.03737453,179.79,179.78,5.5608]
[1748027203202,0.03737453,179.79,179.77,0.0371861]
[1748027204107,5.59737453,179.79,179.66,6.94363857]
[1748027204410,5.5615,179.76,179.71,5.5629]
[1748027204705,144.8,179.82,179.68,144.8]
[1748027205204,0.037439,179.77,179.73,0.03652351]
[1748027206002,0.037439,179.77,179.67,144.8]
[1748027206308,144.8,179.77,179.67,144.8]
[1748027206509,2.0183,179.76,179.67,144.8]
[1748027206715,5.5619,179.75,179.67,144.8]
[1748027207008,0.03797453,179.73,179.69,0.04042641]
[1748027207708,5.5629,179.72,179.69,0.04042641]
[1748027208004,0.03797453,179.73,179.68,5.64062806]
[1748027208219,144.8,179.72,179.7,5.64062806]
[1748027208410,5.5632,179.71,179.66,5.5643]
[1748027208811,144.8,179.72,179.59,6.94363857]
[1748027209009,0.03533337,179.67,179.64,0.04159717]
[1748027209510,0.03533337,179.67,179.65,5.5646]
[1748027209708,0.03533337,179.67,179.64,0.04159717]
[1748027210104,0.03533337,179.67,179.65,5.5646]
[1748027210411,0.03533337,179.67,179.64,0.04159717]
[1748027210714,144.83533337,179.67,179.59,6.94363857]
[1748027211108,150.39983337,179.67,179.61,5.5658]
[1748027211509,144.83533337,179.67,179.61,5.5658]
[1748027211711,144.83533337,179.67,179.62,0.0375951]
[1748027212005,144.83533337,179.67,179.62,5.6031951]
[1748027212213,144.83533337,179.67,179.62,0.0375951]
[1748027212711,0.03533337,179.67,179.62,0.0375951]
[1748027214314,0.03533337,179.67,179.63,5.5654]
[1748027215321,5.59983337,179.67,179.62,150.4232951]
[1748027215512,0.03533337,179.67,179.62,144.8575951]
[1748027215916,5.59963337,179.67,179.62,5.6032951]
[1748027216216,0.03533337,179.67,179.62,144.8575951]
[1748027216619,5.59963337,179.67,179.62,150.4232951]
[1748027216919,5.59963337,179.67,179.62,144.8575951]
[1748027217120,0.03533337,179.67,179.62,144.8575951]
[1748027217629,0.03533337,179.67,179.64,5.5649]
[1748027217916,0.03533337,179.67,179.62,144.8575951]
[1748027218118,0.03533337,179.67,179.64,5.5649]
[1748027218314,0.03533337,179.67,179.62,144.8575951]
[1748027219317,0.03533337,179.67,179.65,5.5646]
[1748027219508,0.03533337,179.67,179.62,144.8575951]
[1748027220022,0.03533337,179.67,179.66,5.5645]
[1748027220823,141.36,179.75,179.7,5.5633]
[1748027221014,1.9405,179.77,179.7,5.5633]
[1748027221213,1.9405,179.77,179.72,5.5626]
[1748027221426,141.36,179.79,179.71,5.52908353]
[1748027221822,0.03521922,179.77,179.74,5.5621]
[1748027222016,0.03521922,179.77,179.73,0.03727219]
[1748027222710,0.03521922,179.77,179.74,5.52908353]
[1748027223121,0.03521922,179.77,179.76,5.5614]
[1748027223325,3.8489,179.85,179.74,5.52908353]
[1748027223517,141.36,179.87,179.75,3.9513]
[1748027223710,1.9188,179.89,179.75,18.89950333]
[1748027223915,1.9286,179.9,179.75,18.89950333]
[1748027224117,1.9286,179.9,179.84,5.5587]
[1748027224421,0.04078127,179.89,179.85,0.0395188]
[1748027224612,0.04078127,179.89,179.85,5.5981188]
[1748027224613,5.59838127,179.89,179.85,5.5981188]
[1748027225226,0.04078127,179.89,179.85,5.5981188]
[1748027226120,0.04078127,179.89,179.86,5.52908353]
[1748027226919,0.04078127,179.89,179.87,5.52908353]
[1748027228125,5.59818127,179.89,179.87,5.52908353]
[1748027228517,0.04078127,179.89,179.87,5.52908353]
[1748027228826,0.04078127,179.89,179.88,5.52908353]
[1748027230123,0.04078127,179.89,179.88,0.92628353]
[1748027230331,5.5583,179.86,179.85,0.0395188]
[1748027230629,0.04078127,179.89,179.78,6.94363857]
[1748027230925,150.6391198,179.91,179.78,6.94363857]
[1748027231425,5.56,179.81,179.75,731.7313]
[1748027231626,0.03943143,179.8,179.76,0.03822577]
[1748027232328,141.23943143,179.8,179.76,0.03822577]
[1748027232532,5.5611,179.77,179.76,0.03822577]
[1748027233119,5.5621,179.74,179.73,6.94363857]
[1748027233720,141.2,179.8,179.73,6.94363857]
[1748027234121,0.03689692,179.78,179.75,0.03896108]
[1748027234421,5.5611,179.77,179.75,0.03896108]
[1748027234834,0.03689692,179.78,179.75,0.03896108]
[1748027235131,5.5614,179.76,179.75,0.03896108]
[1748027240732,5.5614,179.76,179.75,6.108e-05]
[1748027245631,0.03689692,179.78,179.75,6.108e-05]
[1748027246138,5.5614,179.76,179.75,6.108e-05]
[1748027248329,5.5612,179.77,179.75,6.108e-05]
[1748027248531,0.03689692,179.78,179.75,6.108e-05]
[1748027248837,5.5614,179.76,179.75,6.108e-05]
[1748027249537,5.5612,179.77,179.75,6.108e-05]
[1748027249735,0.03689692,179.78,179.75,6.108e-05]
[1748027249929,5.5614,179.76,179.75,6.108e-05]
[1748027252131,5.5613,179.77,179.75,6.108e-05]
[1748027252539,0.03689692,179.78,179.75,6.108e-05]
[1748027252740,5.5611,179.77,179.75,6.108e-05]
[1748027253251,0.03689692,179.78,179.75,5.56166108]
[1748027253540,0.03689692,179.78,179.75,6.108e-05]
[1748027254138,5.5614,179.76,179.75,6.108e-05]
[1748027260639,0.03689692,179.78,179.75,6.108e-05]
[1748027261141,0.03689692,179.78,179.76,5.5612]
[1748027261342,0.03689692,179.78,179.75,6.108e-05]
[1748027261736,5.5614,179.76,179.75,6.108e-05]
[1748027262140,0.03689692,179.78,179.75,6.108e-05]
[1748027263537,5.5614,179.76,179.75,6.108e-05]
[1748027263740,0.03689692,179.78,179.75,6.108e-05]
[1748027264045,5.5614,179.76,179.75,6.108e-05]
[1748027264239,0.03689692,179.78,179.75,6.108e-05]
[1748027265142,5.5614,179.76,179.75,6.108e-05]
[1748027268252,5.5612,179.77,179.75,6.108e-05]
[1748027268641,0.03689692,179.78,179.75,6.108e-05]
[1748027268845,5.5614,179.76,179.75,6.108e-05]
[1748027274957,5.5614,179.76,179.75,5.37045268]
[1748027277144,5.5614,179.76,179.75,5.268e-05]
[1748027278262,5.5618,179.75,179.74,0.04010733]
[1748027280654,5.5636,179.69,179.68,5.15340256]
[1748027281860,5.5639,179.68,179.67,1.87104024]
[1748027282263,0.03665732,179.7,179.67,1.87104024]
[1748027282458,135.56,179.75,179.67,1.87104024]
[1748027282662,135.56,179.79,179.67,1.87104024]
[1748027282864,135.56,179.79,179.7,5.5632]
[1748027283165,5.5623,179.74,179.67,1.835]
[1748027283459,135.56,179.79,179.67,1.835]
[1748027283763,0.0372102,179.75,179.71,0.04129248]
[1748027283964,0.0372102,179.75,179.72,5.5625]
[1748027284268,0.0372102,179.75,179.71,0.04129248]
[1748027284563,0.0372102,179.75,179.72,5.5625]
[1748027284966,0.0372102,179.75,179.71,0.04129248]
[1748027287369,5.5621,179.74,179.71,0.04129248]
[1748027287667,0.0372102,179.75,179.71,0.04129248]
[1748027288165,5.5623,179.74,179.71,0.04129248]
[1748027288465,5.5623,179.74,179.71,5.60419248]
[1748027289067,0.0372102,179.75,179.71,0.04129248]
[1748027290170,0.0372102,179.75,179.71,5.60419248]
[1748027290571,0.0372102,179.75,179.72,5.35785357]
[1748027291172,5.5622,179.74,179.72,5.35785357]
[1748027292172,5.5622,179.74,179.73,5.35785357]
[1748027294579,5.5990102,179.75,179.73,5.35785357]
[1748027295171,0.0372102,179.75,179.73,5.35785357]
[1748027296572,135.56,179.79,179.74,5.35785357]
[1748027297068,5.561,179.78,179.74,5.35785357]
[1748027297273,135.56,179.79,179.74,5.35785357]
[1748027297570,0.0404523,179.78,179.75,5.39693677]
[1748027298979,5.5614,179.76,179.75,0.0390832]
[1748027300283,5.5636,179.7,179.68,5.15340256]
[1748027300484,1.8897,179.78,179.68,5.15340256]
[1748027301185,0.03517103,179.75,179.71,0.04138725]
[1748027301580,130.46,179.74,179.71,0.04138725]
[1748027301884,5.5627,179.72,179.71,0.04138725]
[1748027306192,5.5627,179.72,179.71,5.40039096]
[1748027314902,5.5645,179.66,179.65,5.15340256]
[1748027315901,0.03687089,179.67,179.65,5.15340256]
[1748027316098,0.04286504,179.68,179.65,5.15340256]
[1748027316293,5.60696504,179.68,179.65,10.71800256]
[1748027316494,0.04286504,179.68,179.65,10.71800256]
[1748027316694,0.04286504,179.68,179.65,5.15340256]
[1748027316903,0.04286504,179.68,179.64,5.60366621]
[1748027317096,0.04286504,179.68,179.64,0.03866621]
[1748027317397,0.04286504,179.68,179.66,5.5643]
[1748027317697,0.04286504,179.68,179.64,0.03866621]
[1748027317898,130.46,179.74,179.64,0.03866621]
[1748027318097,1.8897,179.78,179.65,105.74]
[1748027318098,132.3897,179.78,179.65,105.74]
[1748027318398,132.3897,179.78,179.66,5.89022685]
[1748027318600,132.3897,179.78,179.67,130.5]
[1748027319002,0.04209184,179.74,179.72,5.5625]
[1748027319194,0.04209184,179.74,179.71,0.03558705]
[1748027319693,0.04209184,179.74,179.73,5.5624]
[1748027320599,0.04209184,179.74,179.72,5.5626]
[1748027321499,0.04209184,179.74,179.73,5.5624]
[1748027321999,126.92,179.82,179.71,0.03558705]
[1748027322305,5.5609,179.78,179.74,5.5618]
[1748027322705,5.5609,179.78,179.75,5.5617]
[1748027323006,5.59954999,179.78,179.75,0.04229922]
[1748027324407,5.59954999,179.78,179.75,5.60399922]
[1748027324608,5.59954999,179.78,179.75,0.04229922]
[1748027325602,5.59954999,179.78,179.75,5.60399922]
[1748027325999,5.5611,179.77,179.75,0.04229922]
[1748027326403,0.03864999,179.78,179.75,0.04229922]
[1748027326613,5.5614,179.77,179.75,0.04229922]
[1748027328808,0.03864999,179.78,179.75,0.04229922]
[1748027329209,5.59964999,179.78,179.75,5.60399922]
[1748027329509,0.03864999,179.78,179.75,0.04229922]
[1748027329907,0.03864999,179.78,179.76,5.32753693]
[1748027331415,0.03864999,179.78,179.75,0.04229922]
[1748027331603,0.03864999,179.78,179.76,5.5613]
[1748027332416,0.03864999,179.78,179.77,5.5611]
[1748027334219,0.03864999,179.78,179.77,10.88534924]
[1748027338015,126.9,179.87,179.77,166.32424924]
[1748027338219,1.9966,179.89,179.78,126.9]
[1748027338416,126.9,179.9,179.79,105.7]
[1748027338611,126.9,179.9,179.79,107.5962]
[1748027339024,0.03807917,179.86,179.83,0.04046735]
[1748027339316,0.03807917,179.86,179.84,5.559]
[1748027339525,0.03807917,179.86,179.83,0.04046735]
[1748027339821,0.03807917,179.86,179.84,5.5587]
[1748027340222,0.03807917,179.86,179.83,0.04046735]
[1748027341723,5.59647917,179.86,179.83,0.04046735]
[1748027342223,5.559,179.84,179.83,0.04046735]
[1748027346223,0.03807917,179.86,179.83,0.04046735]
[1748027346622,0.03807917,179.86,179.84,5.5587]
[1748027347117,0.03807917,179.86,179.83,0.04046735]
[1748027347322,0.03807917,179.86,179.83,5.59966735]
[1748027347722,0.03807917,179.86,179.83,0.04046735]
[1748027348226,5.59637917,179.86,179.83,5.59966735]
[1748027348627,0.03807917,179.86,179.83,0.04046735]
[1748027350027,0.03807917,179.86,179.84,5.5589]
[1748027350230,0.03807917,179.86,179.83,0.04046735]
[1748027350723,5.559,179.84,179.83,0.04046735]
[1748027351729,5.5587,179.85,179.83,0.04046735]
[1748027352032,0.03807917,179.86,179.83,0.04046735]
[1748027352234,5.5577,179.89,179.83,0.04046735]
[1748027352524,126.72,179.92,179.86,5.5583]
[1748027352729,5.557,179.91,179.84,128.5867]
[1748027353130,126.72,179.96,179.85,105.66]
[1748027353331,0.03917681,179.92,179.89,0.03710854]
[1748027354129,5.5571,179.9,179.89,0.03710854]
[1748027354631,5.5571,179.9,179.89,8.54e-06]
[1748027355736,5.5593,179.83,179.78,1.9608]
[1748027355929,126.7,179.91,179.8,130.5287]
[1748027356529,5.5588,179.85,179.8,130.5287]
[1748027356730,0.03617212,179.84,179.82,5.5594]
[1748027356918,5.559,179.84,179.82,5.5594]
[1748027357331,0.03867534,179.85,179.82,5.5594]
[1748027358028,0.03867534,179.85,179.81,5.59758885]
[1748027358329,0.03867534,179.85,179.81,0.03778885]
[1748027358733,0.03867534,179.85,179.82,5.5594]
[1748027359231,0.03867534,179.85,179.81,0.03778885]
[1748027359827,0.03867534,179.85,179.81,161.03778885]
[1748027360028,126.7,179.91,179.81,161.03778885]
[1748027360234,126.7,179.95,179.82,5.89022685]
[1748027360428,126.7,179.95,179.82,166.89022685]
[1748027360629,126.7,179.95,179.83,5.29748457]
[1748027360831,126.7,179.95,179.83,166.29748457]
[1748027361037,132.2558,179.95,179.92,5.5563]
[1748027361337,132.29743456,179.95,179.92,5.59427476]
[1748027362027,126.74163456,179.95,179.92,0.03797476]
[1748027362228,0.04163456,179.95,179.92,0.03797476]
[1748027363032,5.59733456,179.95,179.92,5.59447476]
[1748027363530,5.5559,179.94,179.92,0.03797476]
[1748027364036,0.04163456,179.95,179.92,0.03797476]
[1748027364236,5.5559,179.94,179.92,0.03797476]
[1748027364737,5.5562,179.93,179.92,0.03797476]
[1748027371943,5.556,179.94,179.92,0.03797476]
[1748027372134,0.04163456,179.95,179.92,0.03797476]
[1748027372543,5.5562,179.93,179.92,0.03797476]
[1748027375748,5.5559,179.94,179.92,0.03797476]
[1748027376749,5.5562,179.93,179.92,0.03797476]
[1748027376944,0.04163456,179.95,179.93,5.556]
[1748027377646,0.04163456,179.95,179.92,0.03797476]
[1748027378047,5.5558,179.94,179.92,0.03797476]
[1748027378752,5.5562,179.93,179.92,0.03797476]
[1748027379152,0.04163456,179.95,179.92,0.03797476]
[1748027380448,5.556,179.94,179.92,0.03797476]
[1748027381047,0.04163456,179.95,179.92,0.03797476]
[1748027381951,0.04163456,179.95,179.93,5.5559]
[1748027383152,0.04163456,179.95,179.94,5.5558]
[1748027384051,0.04163456,179.95,179.92,0.03797476]
[1748027384052,126.68,179.99,179.97,5.5549]
[1748027384347,5.554,180.0,179.97,5.5549]
[1748027384560,5.5538,180.01,179.97,5.5549]
[1748027384960,526.82,180.03,179.97,5.5549]
[1748027385160,5.5539,180.01,179.98,0.03656248]
[1748027385461,0.0398506,180.02,179.98,0.03656248]
[1748027385661,5.554,180.01,179.98,0.03656248]
[1748027385863,0.0398506,180.02,179.98,5.59106248]
[1748027386758,0.0398506,180.02,179.98,0.03656248]
[1748027387263,5.5537,180.01,179.98,0.03656248]
[1748027387964,5.5933506,180.02,179.98,5.59116248]
[1748027388160,0.0398506,180.02,179.98,5.59116248]
[1748027389260,0.0398506,180.02,179.98,0.03656248]
[1748027389764,5.5537,180.01,179.98,0.03656248]
[1748027390156,0.0398506,180.02,179.98,0.03656248]
[1748027392164,5.5537,180.01,179.98,0.03656248]
[1748027392467,0.0398506,180.02,179.98,0.03656248]
[1748027392662,5.554,180.01,179.98,0.03656248]
[1748027392858,0.0398506,180.02,179.98,0.03656248]
[1748027393054,0.0398506,180.02,179.99,5.5542]
[1748027393263,0.0398506,180.02,179.98,0.03656248]
[1748027393566,126.4198506,180.02,179.98,0.03656248]
[1748027394168,5.5543,179.99,179.98,0.03656248]
[1748027396563,5.5543,179.99,179.98,6.248e-05]
[1748027399473,5.5562,179.93,179.9,5.5569]
[1748027399675,5.5562,179.93,179.91,10.86657693]
[1748027399973,5.5562,179.93,179.91,5.30977693]
[1748027400170,5.5565,179.92,179.91,5.30977693]
[1748027400673,5.59270434,179.93,179.91,5.30977693]
[1748027401873,5.59270434,179.93,179.91,10.86647693]
[1748027402066,0.03640434,179.93,179.91,10.86647693]
[1748027402270,0.03640434,179.93,179.91,5.30977693]
[1748027402470,0.03640434,179.93,179.9,0.0380083]
[1748027402672,5.59270434,179.93,179.9,0.0380083]
[1748027403979,5.59270434,179.93,179.9,5.5950083]
[1748027404171,5.59270434,179.93,179.9,0.0380083]
[1748027404367,5.5565,179.92,179.9,0.0380083]
[1748027404674,0.03640434,179.93,179.9,0.0380083]
[1748027404875,5.5568,179.91,179.9,8.3e-06]
[1748027405576,126.38,179.92,179.82,3.8326]
[1748027405780,5.89022685,179.9,179.8,133.49210256]
[1748027405980,5.89022685,179.91,179.8,133.49210256]
[1748027406577,5.89022685,179.91,179.81,5.31877972]
[1748027406777,0.04130918,179.87,179.84,0.03980578]
[1748027406982,126.42130918,179.87,179.84,0.03980578]
[1748027407178,5.5586,179.85,179.84,0.03980578]
[1748027410686,5.5584,179.86,179.84,0.03980578]
[1748027411283,5.59930918,179.87,179.84,0.03980578]
[1748027411487,0.04130918,179.87,179.84,0.03980578]
[1748027411680,0.04130918,179.87,179.84,161.03980578]
[1748027411883,5.5575,179.89,179.86,5.5581]
[1748027412689,5.5565,179.92,179.84,0.03980578]
[1748027412891,0.03575832,179.9,179.84,0.03980578]
[1748027413485,126.1,179.94,179.84,0.03980578]
[1748027413788,5.5562,179.93,179.89,5.5572]
[1748027414292,126.1,179.94,179.89,5.5572]
[1748027414491,0.04273079,179.93,179.9,0.03743819]
[1748027415186,5.5568,179.91,179.9,0.03743819]
[1748027415388,0.04273079,179.93,179.82,290.8939]
[1748027415687,131.99022685,179.94,179.84,5.5587]
[1748027416187,5.5581,179.87,179.84,5.5587]
[1748027416390,5.59559952,179.87,179.84,5.59996988]
[1748027416592,0.03749952,179.87,179.86,5.5583]
[1748027416893,5.557,179.91,179.84,0.04126988]
[1748027417084,5.557,179.91,179.84,161.04126988]
[1748027417282,5.5562,179.93,179.84,161.04126988]
[1748027417488,5.5562,179.93,179.85,5.31036577]
[1748027417783,0.0409641,179.91,179.9,5.5569]
[1748027417989,126.1,179.94,179.89,0.0415641]
[1748027418492,126.12,179.99,179.89,0.0415641]
[1748027418692,5.5555,179.96,179.87,287.12]
[1748027418892,5.5555,179.96,179.92,5.5563]
[1748027419094,0.04224602,179.96,179.92,0.03817203]
[1748027419699,5.5562,179.93,179.92,0.03817203]
[1748027427097,5.5559,179.94,179.92,0.03817203]
[1748027427503,0.04224602,179.96,179.92,0.03817203]
[1748027427802,5.5556,179.95,179.92,5.59447203]
[1748027428904,0.04224602,179.96,179.92,0.03817203]
[1748027429300,5.5557,179.95,179.92,5.59457203]
[1748027429708,0.04224602,179.96,179.92,0.03817203]
[1748027429909,5.59754602,179.96,179.93,5.5559]
[1748027430100,0.04224602,179.96,179.92,0.03817203]
[1748027431107,0.04224602,179.96,179.94,5.5557]
[1748027431401,0.04224602,179.96,179.93,1.9052]
[1748027431608,0.04224602,179.96,179.94,5.5558]
[1748027432204,0.04224602,179.96,179.93,7.4612]
[1748027432404,0.04224602,179.96,179.93,1.9052]
[1748027432604,0.04224602,179.96,179.92,0.03817203]
[1748027435216,5.5562,179.93,179.92,0.03817203]
[1748027435520,0.04224602,179.96,179.92,0.03817203]
[1748027436221,5.5562,179.93,179.92,0.03817203]
[1748027448133,5.5562,179.93,179.92,7.203e-05]
[1748027449346,133.39462685,179.95,179.84,161.0]
[1748027449534,1.8571,179.94,179.83,5.15340256]
[1748027449735,5.89022685,179.92,179.84,5.32032141]
[1748027449935,5.5585,179.86,179.84,5.32032141]
[1748027450130,125.68,179.9,179.84,5.32032141]
[1748027450333,0.038683,179.89,179.85,0.03621597]
[1748027450531,5.5583,179.86,179.85,0.03621597]
[1748027453735,0.038683,179.89,179.85,0.03621597]
[1748027453736,5.5581,179.87,179.85,0.03621597]
[1748027453942,0.038683,179.89,179.85,0.03621597]
[1748027454241,5.5578,179.88,179.85,0.03621597]
[1748027454436,5.5578,179.88,179.85,5.59461597]
[1748027454835,5.596083,179.89,179.86,5.5583]
[1748027455039,0.038683,179.89,179.85,0.03621597]
[1748027455441,0.038683,179.89,179.86,5.32357428]
[1748027456030,5.5579,179.88,179.86,5.32357428]
[1748027456231,0.038683,179.89,179.86,5.32357428]
[1748027456938,125.7,179.93,179.87,5.32357428]
[1748027457643,5.5567,179.92,179.89,5.5572]
[1748027457846,0.03956628,179.92,179.89,0.03780786]
[1748027458333,0.03956628,179.92,179.9,5.32357428]
[1748027458944,0.03956628,179.92,179.91,5.5565]
[1748027459143,0.03956628,179.92,179.9,5.32357428]
[1748027459743,0.03956628,179.92,179.89,0.03780786]
[1748027460550,5.557,179.91,179.89,0.03780786]
[1748027460936,0.03956628,179.92,179.89,0.03780786]
[1748027461133,5.59606628,179.92,179.89,5.59500786]
[1748027461443,0.03956628,179.92,179.89,0.03780786]
[1748027461643,5.5568,179.91,179.89,0.03780786]
[1748027464249,5.5571,179.9,179.89,0.03780786]
[1748027464446,0.03956628,179.92,179.89,0.03780786]
[1748027464748,5.5571,179.9,179.89,0.03780786]
[1748027465648,5.5571,179.9,179.89,5.36149046]
[1748027465855,5.5569,179.91,179.89,5.36149046]
[1748027466248,0.03956628,179.92,179.89,5.36149046]
[1748027466449,5.5571,179.9,179.89,5.36149046]
[1748027466651,5.5571,179.9,179.89,0.03780786]
[1748027468150,5.5569,179.91,179.89,0.03780786]
[1748027468553,5.5571,179.9,179.89,0.03780786]
[1748027468849,0.03956628,179.92,179.89,0.03780786]
[1748027469056,0.03956628,179.92,179.9,5.557]
[1748027469342,0.03956628,179.92,179.89,0.03780786]
[1748027469650,0.03956628,179.92,179.9,5.5569]
[1748027470350,0.03956628,179.92,179.91,5.32217932]
[1748027470850,0.03956628,179.92,179.91,10.87897932]
[1748027471051,0.03956628,179.92,179.91,5.32217932]
[1748027472650,0.03956628,179.92,179.91,10.87897932]
[1748027472952,125.7,179.98,179.91,5.32217932]
[1748027473351,125.24,180.02,179.92,105.62]
[1748027473550,125.24,180.02,179.93,1.8786]
[1748027474250,0.03783965,179.99,179.96,0.03845579]
[1748027474743,125.22,180.07,179.96,0.03845579]
[1748027475150,5.5539,180.01,179.97,5.5549]
[1748027475351,5.89022685,180.06,179.96,0.03845579]
[1748027475656,5.5549,179.97,179.96,0.03845579]
[1748027487168,5.57854389,179.98,179.96,0.03845579]
[1748027487567,0.02384389,179.98,179.96,0.03845579]
[1748027488565,0.02384389,179.98,179.96,5.59355579]
[1748027488765,5.57864389,179.98,179.96,0.03845579]
[1748027490867,0.02384389,179.98,179.96,5.59355579]
[1748027491568,0.02384389,179.98,179.96,0.03845579]
[1748027492173,5.57844389,179.98,179.96,0.03845579]
[1748027492767,5.5549,179.97,179.96,0.03845579]
[1748027493168,0.02384389,179.98,179.96,0.03845579]
[1748027493462,5.57864389,179.98,179.96,0.03845579]
[1748027493673,0.02384389,179.98,179.96,0.03845579]
[1748027494772,0.02384389,179.98,179.97,5.5549]
[1748027496375,0.02384389,179.98,179.96,0.03845579]
[1748027497672,0.02384389,179.98,179.96,5.59345579]
[1748027498271,0.02384389,179.98,179.96,0.03845579]
[1748027498478,0.02384389,179.98,179.97,5.5549]